bitfinex-derivatives/quotes_BTCF0:USTF0_20240820
["timestamp","ask_amount","ask_price","bid_price","bid_amount"]
[1724167724330,0.15,59016.0,59015.0,0.1182336]
[1724167724635,0.15,59016.0,59015.0,0.067764]
[1724167724831,0.15,59016.0,59015.0,0.11823467]
[1724167725536,0.15,59016.0,59015.0,0.067764]
[1724167726249,0.0011343,59019.0,59018.0,0.13552]
[1724167726436,0.0002543,59019.0,59018.0,0.56361196]
[1724167727641,0.0002543,59019.0,59018.0,0.49632]
[1724167727838,0.0002543,59019.0,59018.0,1.07193196]
[1724167728535,0.0002543,59019.0,59018.0,0.49632]
[1724167728739,0.0002543,59019.0,59018.0,0.56361196]
[1724167729833,0.0002543,59019.0,59018.0,0.49632]
[1724167730131,0.428547,59030.0,59019.0,0.067759]
[1724167730347,0.78581222,59030.0,59029.0,0.067748]
[1724167731442,0.79734318,59030.0,59029.0,0.067748]
[1724167732035,0.72959618,59030.0,59029.0,0.067748]
[1724167732931,0.37233096,59030.0,59029.0,0.067748]
[1724167733342,0.56959618,59030.0,59029.0,0.067748]
[1724167733739,0.56959618,59030.0,59024.0,0.05072503]
[1724167733740,0.067748,59029.0,59024.0,0.0002543]
[1724167733937,0.428552,59025.0,59024.0,0.0680073]
[1724167734136,0.598552,59025.0,59024.0,0.0002543]
[1724167734441,0.79581722,59025.0,59024.0,0.0002543]
[1724167736754,0.79581722,59025.0,59024.0,0.0680073]
[1724167736946,0.79581722,59025.0,59024.0,0.11847803]
[1724167737547,0.17,59025.0,59024.0,0.0680073]
[1724167737851,0.37233096,59030.0,59029.0,0.067748]
[1724167738146,0.71959618,59030.0,59029.0,0.067748]
[1724167738352,0.71959618,59030.0,59029.0,3.837748]
[1724167738538,0.71959618,59030.0,59029.0,0.067748]
[1724167739050,0.71959618,59030.0,59029.0,3.837748]
[1724167739249,0.72359618,59030.0,59029.0,3.837748]
[1724167741539,0.72359618,59030.0,59029.0,3.8884664]
[1724167741940,0.72359618,59030.0,59025.0,0.067752]
[1724167741941,0.067751,59026.0,59025.0,0.067752]
[1724167742141,0.217751,59026.0,59025.0,0.11847878]
[1724167742447,0.41501622,59026.0,59025.0,0.05072684]
[1724167742746,0.067752,59025.0,59024.0,0.05098114]
[1724167742946,0.578552,59025.0,59024.0,0.05098114]
[1724167743146,0.77581722,59025.0,59024.0,0.05098114]
[1724167743544,0.77581722,59025.0,59024.0,0.11873414]
[1724167743845,0.77581722,59025.0,59024.0,0.0002543]
[1724167744258,0.77581722,59025.0,59024.0,0.05098725]
[1724167744547,0.77581722,59025.0,59024.0,0.0002543]
[1724167744942,0.70806522,59025.0,59024.0,0.0680073]
[1724167745343,0.34726522,59025.0,59024.0,0.0680073]
[1724167745649,0.3608,59031.0,59024.0,0.0002543]
[1724167745845,0.0002543,59035.0,59034.0,0.067742]
[1724167746150,0.0002543,59035.0,59034.0,0.643644]
[1724167746360,0.3608,59047.0,59046.0,0.067728]
[1724167746537,0.71806522,59047.0,59046.0,0.067728]
[1724167746853,0.72925806,59047.0,59046.0,0.067728]
[1724167748141,0.70925806,59047.0,59046.0,0.067728]
[1724167748938,0.37199284,59047.0,59046.0,0.067728]
[1724167749138,0.01119284,59047.0,59046.0,0.067728]
[1724167749342,0.47005407,59052.0,59043.0,0.41149775]
[1724167749652,0.80731929,59052.0,59044.0,0.05069775]
[1724167750150,0.80731929,59052.0,59043.0,0.41149775]
[1724167750348,0.80731929,59052.0,59051.0,0.067722]
[1724167751143,0.33751929,59052.0,59051.0,0.067722]
[1724167751349,0.00025407,59052.0,59051.0,0.11841975]
[1724167751547,0.42851,59062.0,59051.0,0.05056822]
[1724167751761,0.42851,59062.0,59058.0,0.067713]
[1724167751762,0.78577522,59062.0,59058.0,0.067713]
[1724167751955,0.78577522,59062.0,59059.0,3.77]
[1724167752145,0.72931184,59062.0,59059.0,3.77]
[1724167752350,0.72931184,59062.0,59061.0,0.067711]
[1724167753154,0.067712,59060.0,59059.0,0.00116]
[1724167753349,0.067712,59060.0,59055.0,0.00025407]
[1724167753350,0.16,59060.0,59055.0,0.00025407]
[1724167753555,0.3608,59056.0,59046.0,0.067728]
[1724167753856,0.3608,59056.0,59048.0,0.067726]
[1724167753857,0.3608,59049.0,59048.0,0.067726]
[1724167754157,0.5208,59056.0,59041.0,0.0505172]
[1724167754158,0.067719,59054.0,59041.0,0.0505172]
[1724167754451,0.237719,59054.0,59052.0,0.06772]
[1724167754655,0.14644293,59054.0,59053.0,0.06772]
[1724167756248,0.36105407,59059.0,59058.0,0.067714]
[1724167756456,0.667497,59059.0,59058.0,0.067714]
[1724167758261,0.67869035,59059.0,59058.0,0.067714]
[1724167758444,0.31789035,59059.0,59058.0,0.067714]
[1724167758646,0.00025407,59059.0,59058.0,0.428514]
[1724167758952,0.00125407,59059.0,59058.0,0.428514]
[1724167759266,1e-08,59059.0,59058.0,4.266228]
[1724167759446,0.067697,59074.0,59058.0,4.1308]
[1724167759761,0.227697,59074.0,59070.0,0.0677]
[1724167759958,0.3608,59073.0,59058.0,4.1308]
[1724167760259,0.5308,59073.0,59066.0,0.00025407]
[1724167760458,0.67724293,59073.0,59066.0,0.06795807]
[1724167760645,0.067702,59069.0,59067.0,0.067704]
[1724167760848,0.227702,59069.0,59067.0,0.067704]
[1724167761047,0.30644293,59069.0,59066.0,0.00025407]
[1724167761354,0.067704,59067.0,59066.0,0.00025407]
[1724167761558,0.227704,59067.0,59066.0,0.00025407]
[1724167761755,1.28206693,59067.0,59066.0,0.00025407]
[1724167761955,0.067705,59066.0,59058.0,0.012]
[1724167762156,0.3608,59062.0,59057.0,0.067715]
[1724167762451,0.067713,59059.0,59058.0,0.067714]
[1724167762652,0.217713,59059.0,59058.0,0.067714]
[1724167762853,0.36415593,59059.0,59058.0,0.067714]
[1724167763655,0.067715,59058.0,59054.0,0.067718]
[1724167763858,0.067718,59056.0,59055.0,0.067718]
[1724167764252,0.20216093,59056.0,59055.0,0.067718]
[1724167764762,0.067719,59054.0,59053.0,0.00025407]
[1724167764955,0.36216193,59054.0,59053.0,0.00025407]
[1724167765854,0.79068093,59054.0,59053.0,0.00025407]
[1724167766057,0.79068093,59054.0,59041.0,0.067734]
[1724167766058,0.5218,59054.0,59041.0,0.067734]
[1724167766265,0.06773,59045.0,59042.0,0.067732]
[1724167766449,0.22773,59045.0,59042.0,0.067732]
[1724167766648,0.37417293,59045.0,59042.0,0.067732]
[1724167766870,0.37417293,59045.0,59040.0,0.4627]
[1724167766871,0.3608,59047.0,59045.0,0.067729]
[1724167767161,0.067721,59052.0,59040.0,0.47397555]
[1724167767162,0.06797507,59052.0,59043.0,0.3608]
[1724167767361,0.374418,59052.0,59043.0,0.3608]
[1724167767657,0.374418,59052.0,59048.0,0.067725]
[1724167768757,0.067722,59051.0,59048.0,0.067725]
[1724167768957,0.237722,59051.0,59048.0,0.067725]
[1724167769258,0.38416493,59051.0,59048.0,0.067725]
[1724167770560,0.31644293,59051.0,59050.0,0.067724]
[1724167772458,0.00025407,59052.0,59051.0,0.067723]
[1724167772655,0.00125407,59052.0,59051.0,0.067723]
[1724167772964,0.00225407,59052.0,59051.0,0.1182402]
[1724167773155,0.00225407,59052.0,59051.0,0.523123]
[1724167773857,0.00025407,59052.0,59051.0,0.523123]
[1724167774160,0.00025407,59052.0,59051.0,0.590846]
[1724167775063,0.3608,59060.0,59059.0,0.067713]
[1724167775369,0.65724293,59060.0,59059.0,0.067713]
[1724167776064,0.65724293,59060.0,59059.0,0.11835517]
[1724167776365,0.00025407,59065.0,59058.0,0.3608]
[1724167776667,0.00025407,59065.0,59064.0,0.067708]
[1724167776859,0.067682,59087.0,59072.0,0.067697]
[1724167777054,0.067683,59086.0,59081.0,0.41144286]
[1724167777258,0.067684,59085.0,59083.0,0.067685]
[1724167777462,0.3608,59089.0,59083.0,0.067685]
[1724167777463,0.067681,59088.0,59083.0,0.067685]
[1724167777662,0.17,59088.0,59083.0,0.067685]
[1724167777861,0.31644293,59088.0,59083.0,0.067685]
[1724167778067,0.067683,59086.0,59083.0,0.067685]
[1724167778261,0.14644293,59088.0,59083.0,0.067685]
[1724167778466,0.007,59085.0,59083.0,0.067685]
[1724167778858,0.15344293,59085.0,59083.0,0.067685]
[1724167779053,0.15344293,59085.0,59084.0,0.067685]
[1724167779054,0.14644293,59085.0,59084.0,0.067685]
[1724167779759,0.15344293,59085.0,59084.0,0.067685]
[1724167780362,0.15444293,59085.0,59084.0,0.067685]
[1724167781063,0.15344293,59085.0,59084.0,0.067685]
[1724167781363,0.14644293,59085.0,59084.0,0.070685]
[1724167781567,0.15444293,59085.0,59084.0,0.070685]
[1724167782468,0.008,59085.0,59084.0,0.070685]
[1724167782662,0.008,59085.0,59084.0,0.12132786]
[1724167782966,0.00016603,59091.0,59084.0,0.12132786]
[1724167782967,0.00016603,59091.0,59090.0,0.067678]
[1724167783173,0.14660896,59091.0,59090.0,0.067678]
[1724167784261,0.14860896,59091.0,59090.0,0.067678]
[1724167784663,0.16260896,59091.0,59090.0,0.068678]
[1724167786676,0.32260896,59091.0,59090.0,0.068678]
[1724167787964,1.80544603,59091.0,59080.0,0.00025385]
[1724167788271,1.80544603,59091.0,59073.0,1.825957]
[1724167788272,0.3608,59084.0,59083.0,0.067686]
[1724167788575,0.16,59084.0,59083.0,0.067686]
[1724167788874,0.25575063,59084.0,59083.0,0.135372]
[1724167789074,0.25575063,59084.0,59083.0,0.496172]
[1724167789374,0.16,59084.0,59083.0,0.496172]
[1724167789572,0.01516603,59091.0,59090.0,0.057678]
[1724167789873,0.25891666,59091.0,59090.0,0.057678]
[1724167790168,0.25791666,59091.0,59090.0,0.057678]
[1724167791169,0.25891666,59091.0,59090.0,0.065678]
[1724167791575,0.16116603,59091.0,59090.0,0.065678]
[1724167791974,0.16116603,59091.0,59090.0,0.133356]
[1724167792280,0.16616603,59091.0,59090.0,0.133356]
[1724167792773,0.26191666,59091.0,59090.0,0.065678]
[1724167793362,0.32959366,59091.0,59090.0,0.065678]
[1724167793768,0.32959366,59091.0,59090.0,0.008]
[1724167793963,0.39727066,59091.0,59090.0,0.008]
[1724167794164,0.61296281,59091.0,59072.0,0.05034222]
[1724167794376,0.61296281,59091.0,59064.0,0.08440477]
[1724167794377,0.3608,59079.0,59068.0,0.05034222]
[1724167794576,0.3608,59079.0,59065.0,0.3608]
[1724167794577,0.3608,59074.0,59065.0,0.3608]
[1724167794877,0.5208,59074.0,59073.0,0.067697]
[1724167795072,0.25549678,59074.0,59073.0,0.067697]
[1724167795874,0.00025385,59079.0,59078.0,0.067692]
[1724167797677,0.00025385,59079.0,59078.0,0.438492]
[1724167799170,0.00125385,59079.0,59078.0,0.438492]
[1724167800373,0.00125385,59079.0,59078.0,0.077692]
[1724167800572,0.00125385,59079.0,59068.0,0.00025385]
[1724167800573,1.15455063,59079.0,59068.0,0.00025385]
[1724167800888,0.496204,59069.0,59068.0,0.00025385]
[1724167801068,0.646204,59069.0,59068.0,0.00025385]
[1724167801387,0.067709,59063.0,59059.0,3.77]
[1724167801683,0.3608,59062.0,59059.0,3.77]
[1724167801981,0.45629678,59063.0,59060.0,0.067711]
[1724167802177,0.45629678,59063.0,59059.0,3.77]
[1724167802178,0.45629678,59063.0,59061.0,0.05034222]
[1724167802483,0.45529678,59063.0,59062.0,0.11805222]
[1724167802676,0.44629678,59063.0,59062.0,0.11805222]
[1724167802883,0.08549678,59063.0,59062.0,0.11805222]
[1724167803081,0.08549678,59063.0,59062.0,0.06771]
[1724167803582,0.08649678,59063.0,59062.0,0.06871]
[1724167804287,0.23549678,59063.0,59062.0,0.06871]
[1724167804484,0.23549678,59063.0,59062.0,0.07671]
[1724167805881,0.067712,59060.0,59059.0,0.0012]
[1724167806092,0.067712,59060.0,59056.0,0.00025385]
[1724167806093,0.16,59060.0,59056.0,0.00025385]
[1724167806384,0.24549678,59060.0,59059.0,0.067713]
[1724167807875,0.2579754,59060.0,59059.0,0.067713]
[1724167808278,0.24649678,59060.0,59059.0,0.067713]
[1724167809388,0.24649678,59060.0,59052.0,0.41131812]
[1724167809389,0.508,59059.0,59051.0,0.05049304]
[1724167809684,0.067725,59049.0,59035.0,0.05050799]
[1724167809982,0.3608,59039.0,59038.0,0.067737]
[1724167810183,0.02391661,59039.0,59038.0,0.067737]
[1724167810373,0.02409989,59039.0,59038.0,0.067737]
[1724167810778,0.00018328,59039.0,59038.0,0.067737]
[1724167811179,0.02409989,59039.0,59038.0,0.067737]
[1724167811580,0.02409989,59039.0,59035.0,0.006]
[1724167812276,0.00018328,59039.0,59038.0,0.067737]
[1724167812786,0.00018328,59039.0,59038.0,0.428537]
[1724167813193,0.00018328,59039.0,59038.0,4.198537]
[1724167813388,0.00018328,59039.0,59038.0,3.837737]
[1724167813590,0.00018328,59039.0,59038.0,4.198537]
[1724167814085,0.02409989,59039.0,59038.0,4.198537]
[1724167814276,0.02409989,59039.0,59038.0,3.837737]
[1724167814482,0.17409989,59039.0,59035.0,0.006]
[1724167814690,0.02409989,59039.0,59035.0,0.006]
[1724167814992,0.02409989,59039.0,59038.0,0.067737]
[1724167815582,0.02509989,59039.0,59038.0,0.073737]
[1724167815784,0.19509989,59039.0,59038.0,0.073737]
[1724167815985,0.19709989,59039.0,59038.0,0.078737]
[1724167816190,0.00318328,59039.0,59038.0,0.078737]
[1724167817083,0.00318328,59039.0,59038.0,4.209537]
[1724167817289,0.00018328,59039.0,59038.0,4.198537]
[1724167818095,0.02409989,59039.0,59038.0,4.198537]
[1724167818298,0.00018328,59039.0,59038.0,4.198537]
[1724167818596,0.00118328,59039.0,59038.0,4.200537]
[1724167819893,0.512823,59051.0,59038.0,4.200537]
[1724167819894,0.3608,59053.0,59052.0,0.067721]
[1724167820207,0.56724545,59053.0,59039.0,0.067736]
[1724167820402,0.067732,59043.0,59042.0,0.067732]
[1724167820706,0.227732,59043.0,59042.0,0.067732]
[1724167820908,0.067736,59040.0,59039.0,0.067736]
[1724167821096,0.227736,59040.0,59039.0,0.067736]
[1724167821296,0.25165261,59040.0,59039.0,0.067736]
[1724167821810,0.25165261,59040.0,59038.0,0.00088]
[1724167821811,0.067736,59039.0,59038.0,0.00088]
[1724167821996,0.15,59039.0,59031.0,0.067745]
[1724167822203,0.3608,59034.0,59031.0,0.067745]
[1724167822402,0.4391,59033.0,59027.0,0.06775]
[1724167822602,0.666844,59033.0,59022.0,0.37188097]
[1724167822904,0.067748,59030.0,59022.0,0.37188097]
[1724167823099,0.227748,59030.0,59022.0,0.37188097]
[1724167823299,0.3608,59029.0,59027.0,0.06775]
[1724167823608,0.17,59029.0,59028.0,0.067749]
[1724167823804,0.00025407,59032.0,59031.0,0.067745]
[1724167824104,0.02417068,59032.0,59031.0,0.067745]
[1724167825912,0.00025407,59032.0,59031.0,0.067745]
[1724167826208,0.478,59044.0,59031.0,0.13549]
[1724167826407,0.38471661,59041.0,59040.0,0.067735]
[1724167826612,0.36200001,59053.0,59040.0,3.837735]
[1724167826913,0.17391661,59053.0,59052.0,0.067721]
[1724167827108,0.17391661,59053.0,59049.0,0.067725]
[1724167827406,0.17391661,59053.0,59046.0,0.3608]
[1724167827407,0.17391661,59053.0,59050.0,0.067724]
[1724167827717,0.24163661,59053.0,59050.0,0.067724]
[1724167827901,0.24163661,59053.0,59050.0,0.060724]
[1724167828098,0.067723,59051.0,59046.0,0.47887696]
[1724167828298,0.3608,59050.0,59045.0,0.05060303]
[1724167828502,0.428524,59050.0,59045.0,0.11833203]
[1724167828714,0.45244061,59050.0,59045.0,0.06798307]
[1724167829104,0.067725,59049.0,59045.0,0.11833203]
[1724167829309,0.067725,59049.0,59046.0,0.05034896]
[1724167829504,0.08564161,59049.0,59046.0,0.05034896]
[1724167830111,0.02391661,59049.0,59046.0,0.05034896]
[1724167830306,0.02491661,59049.0,59048.0,0.067726]
[1724167831109,0.02391661,59049.0,59048.0,0.067726]
[1724167831314,0.02491661,59049.0,59048.0,0.067726]
[1724167831508,0.03649649,59049.0,59048.0,0.067726]
[1724167833110,0.02491661,59049.0,59048.0,0.067726]
[1724167833506,0.02491661,59049.0,59048.0,0.072726]
[1724167834415,0.19491661,59049.0,59048.0,0.072726]
[1724167834605,0.26264161,59049.0,59048.0,0.005]
[1724167835111,0.19491661,59049.0,59048.0,0.072726]
[1724167835419,0.26264161,59049.0,59048.0,0.005]
[1724167836102,0.067727,59047.0,59046.0,0.11807696]
[1724167836308,0.202727,59047.0,59046.0,0.067728]
[1724167836504,0.067728,59046.0,59045.0,0.00025407]
[1724167836810,0.227728,59046.0,59045.0,0.00025407]
[1724167837009,0.25164461,59046.0,59045.0,0.00025407]
[1724167837408,0.25164461,59046.0,59045.0,0.06798307]
[1724167837603,0.16,59046.0,59045.0,0.06798307]
[1724167837813,0.16,59046.0,59045.0,0.42878307]
[1724167838215,0.067721,59052.0,59045.0,0.36105407]
[1724167838414,0.067721,59052.0,59050.0,0.06754979]
[1724167838415,0.23163761,59052.0,59050.0,0.06754979]
[1724167838611,0.23163761,59052.0,59051.0,0.067722]
[1724167839609,0.067724,59050.0,59049.0,0.06754979]
[1724167839814,0.5008,59050.0,59046.0,0.06754979]
[1724167840016,0.59244061,59050.0,59045.0,0.06780386]
[1724167840322,0.08764461,59046.0,59045.0,0.00025407]
[1724167840619,0.291456,59046.0,59045.0,0.00025407]
[1724167840821,0.067732,59043.0,59041.0,0.0506854]
[1724167841016,0.067732,59043.0,59037.0,0.06754979]
[1724167841017,0.067736,59040.0,59037.0,0.06754979]
[1724167841215,0.067737,59039.0,59036.0,0.13528879]
[1724167841416,0.3608,59037.0,59036.0,0.13528879]
[1724167841624,0.5008,59037.0,59036.0,0.13528879]
[1724167841812,0.52471661,59037.0,59036.0,0.13528879]
[1724167842520,0.52471661,59037.0,59036.0,0.067739]
[1724167842521,0.16391661,59037.0,59036.0,0.067739]
[1724167842816,0.14,59037.0,59036.0,0.067739]
[1724167843423,0.35705407,59042.0,59041.0,0.067734]
[1724167843618,0.54097068,59042.0,59041.0,0.067734]
[1724167843823,0.16025407,59042.0,59041.0,0.13530177]
[1724167844027,0.00025407,59042.0,59041.0,0.067734]
[1724167844221,0.00025407,59042.0,59041.0,1.437134]
[1724167844422,0.00025407,59042.0,59041.0,5.207134]
[1724167845027,0.00025407,59042.0,59041.0,5.28603898]
[1724167845218,0.44010248,59050.0,59049.0,0.067725]
[1724167845414,0.62401909,59050.0,59049.0,0.05066941]
[1724167845623,0.62401909,59050.0,59047.0,0.05066941]
[1724167845824,0.067726,59048.0,59047.0,0.11839641]
[1724167846121,0.16,59048.0,59047.0,0.11839641]
[1724167846323,0.18391661,59048.0,59047.0,0.11839641]
[1724167846915,0.18391661,59048.0,59047.0,0.12139641]
[1724167847118,0.25164261,59048.0,59047.0,0.05366941]
[1724167847421,0.25164261,59048.0,59047.0,0.003]
[1724167847619,0.067727,59047.0,59045.0,0.11839741]
[1724167847819,0.25864361,59047.0,59046.0,0.067728]
[1724167848019,0.19391661,59047.0,59046.0,0.11839741]
[1724167848424,0.01277849,59050.0,59049.0,0.067725]
[1724167848629,0.18549509,59050.0,59049.0,0.067725]
[1724167849129,0.17391661,59050.0,59049.0,0.067725]
[1724167849322,0.00025407,59053.0,59051.0,0.067722]
[1724167849523,0.16417068,59053.0,59052.0,0.05066039]
[1724167849825,0.24099009,59053.0,59051.0,0.067722]
[1724167850129,0.17327009,59053.0,59052.0,0.067721]
[1724167850522,0.067722,59052.0,59049.0,0.11838539]
[1724167850728,0.3608,59050.0,59049.0,0.067725]
[1724167850921,0.55271661,59050.0,59049.0,0.067725]
[1724167852930,0.55271661,59050.0,59049.0,0.12038539]
[1724167853130,0.62044061,59050.0,59049.0,0.002]
[1724167853333,0.62044061,59050.0,59049.0,0.05266039]
[1724167854823,0.55271661,59050.0,59049.0,0.069725]
[1724167856033,0.55271661,59050.0,59049.0,0.13735684]
[1724167856433,0.55271661,59050.0,59049.0,0.069725]
[1724167856733,0.55271661,59050.0,59049.0,0.067725]
[1724167856924,0.55271661,59050.0,59049.0,0.13536923]
[1724167857129,0.55271661,59050.0,59049.0,0.067725]
[1724167857433,0.82674,59056.0,59049.0,0.45425177]
[1724167857434,0.24215031,59056.0,59049.0,0.45425177]
[1724167857634,0.3608,59061.0,59055.0,0.428518]
[1724167857933,0.5008,59061.0,59060.0,0.067712]
[1724167858118,0.16391661,59061.0,59060.0,3.77]
[1724167858322,0.16391661,59061.0,59060.0,3.837712]
[1724167859229,0.59242761,59061.0,59060.0,3.77]
[1724167860134,0.59442761,59061.0,59060.0,3.77]
[1724167860430,0.59942761,59061.0,59060.0,3.77]
[1724167860631,0.067717,59056.0,59055.0,0.05096632]
[1724167860934,0.067717,59056.0,59050.0,0.00088]
[1724167860935,0.067721,59053.0,59050.0,0.00088]
[1724167861132,0.3608,59051.0,59047.0,0.05070937]
[1724167861325,0.067727,59047.0,59046.0,0.11843737]
[1724167861822,0.24164361,59047.0,59046.0,0.05070937]
[1724167862537,0.24164361,59047.0,59045.0,0.067729]
[1724167862732,0.24064361,59047.0,59045.0,0.067729]
[1724167862930,0.24064361,59047.0,59045.0,0.13536754]
[1724167863134,0.24064361,59047.0,59046.0,0.067728]
[1724167863322,0.24064361,59047.0,59046.0,0.13536654]
[1724167863323,0.23964361,59047.0,59046.0,0.13536654]
[1724167863526,0.23964361,59047.0,59046.0,0.069728]
[1724167864222,0.24862581,59047.0,59046.0,0.13536654]
[1724167864432,0.18289881,59047.0,59046.0,0.13736654]
[1724167864732,0.17391661,59047.0,59046.0,0.13736654]
[1724167864937,0.17391661,59047.0,59046.0,0.430528]
[1724167865128,0.15,59047.0,59046.0,0.430528]
[1724167865324,0.00025407,59052.0,59051.0,0.067722]
[1724167865635,0.067715,59058.0,59051.0,0.3608]
[1724167865835,0.067715,59058.0,59054.0,0.06760659]
[1724167865836,0.19391661,59058.0,59054.0,0.06760659]
[1724167866028,0.19391661,59058.0,59055.0,0.06760659]
[1724167866225,0.17,59058.0,59055.0,0.06760659]
[1724167866833,0.17,59058.0,59057.0,0.428516]
[1724167867035,0.067708,59064.0,59062.0,0.067709]
[1724167867238,0.16391661,59064.0,59059.0,0.05069337]
[1724167867440,0.16391661,59064.0,59057.0,0.3608]
[1724167867441,0.16391661,59064.0,59063.0,0.067709]
[1724167867637,0.16391661,59064.0,59063.0,0.428509]
[1724167867842,0.16391661,59064.0,59063.0,0.067709]
[1724167868136,0.16391661,59064.0,59063.0,3.837709]
[1724167868339,0.16391661,59064.0,59063.0,4.198509]
[1724167868936,0.17491661,59064.0,59063.0,4.199509]
[1724167869235,0.17491661,59064.0,59063.0,4.25017257]
[1724167869635,0.011,59064.0,59063.0,4.25017257]
[1724167869835,0.011,59064.0,59063.0,4.199509]
[1724167870039,0.016,59064.0,59063.0,4.199509]
[1724167871043,0.011,59064.0,59063.0,4.199509]
[1724167871243,0.02,59064.0,59063.0,5.126438]
[1724167871430,0.00025407,59066.0,59065.0,0.067706]
[1724167871631,0.00025407,59066.0,59065.0,0.428506]
[1724167871937,0.00025407,59066.0,59065.0,1.60078756]
[1724167872141,0.4511,59091.0,59087.0,0.06768]
[1724167872335,0.06768,59088.0,59087.0,0.06768]
[1724167872533,0.54269361,59091.0,59086.0,3.77]
[1724167872738,0.47501661,59091.0,59086.0,3.837682]
[1724167872929,0.47501661,59091.0,59086.0,3.77]
[1724167873138,0.3513,59087.0,59078.0,0.3608]
[1724167873341,0.3513,59087.0,59074.0,0.0674204]
[1724167873342,0.067694,59076.0,59074.0,0.067696]
[1724167873536,0.067694,59076.0,59075.0,3.77]
[1724167873737,0.26061061,59076.0,59075.0,3.77]
[1724167874037,0.19391661,59076.0,59069.0,0.3608]
[1724167874244,0.0677,59071.0,59069.0,0.3608]
[1724167874434,0.067696,59075.0,59069.0,0.3608]
[1724167874640,0.067696,59075.0,59070.0,3.77]
[1724167874837,0.02391661,59075.0,59070.0,3.77]
[1724167875037,0.02391661,59075.0,59074.0,0.067696]
[1724167875534,0.02291661,59075.0,59074.0,0.067696]
[1724167875731,0.02291661,59075.0,59074.0,0.069696]
[1724167876033,0.02291661,59075.0,59074.0,0.430496]
[1724167876237,0.00025385,59078.0,59077.0,0.067693]
[1724167876432,0.02317046,59078.0,59077.0,0.067693]
[1724167876635,0.00025385,59078.0,59077.0,0.067693]
[1724167877439,0.00025385,59078.0,59077.0,0.068693]
[1724167877640,0.00025385,59078.0,59077.0,3.838693]
[1724167877942,0.3513,59095.0,59079.0,0.06769]
[1724167878249,0.067677,59091.0,59086.0,0.067682]
[1724167878435,0.067677,59091.0,59087.0,0.067681]
[1724167878436,0.217677,59091.0,59087.0,0.067681]
[1724167878631,0.24059361,59091.0,59087.0,0.067681]
[1724167878836,0.37108776,59094.0,59083.0,0.36105385]
[1724167879037,0.46047736,59094.0,59090.0,0.067678]
[1724167879343,0.067674,59093.0,59090.0,0.067678]
[1724167879848,0.067674,59093.0,59084.0,0.453]
[1724167879849,0.02291661,59093.0,59084.0,0.453]
[1724167880345,0.02291661,59093.0,59092.0,0.067675]
[1724167880737,0.009,59093.0,59092.0,0.067675]
[1724167882133,0.022,59093.0,59092.0,0.067675]
[1724167882547,0.021,59093.0,59092.0,0.067675]
[1724167883153,0.013,59093.0,59092.0,0.067675]
[1724167883449,0.023,59093.0,59092.0,0.069675]
[1724167883747,0.023,59093.0,59092.0,0.068675]
[1724167884046,0.022,59093.0,59092.0,0.069675]
[1724167885334,0.016,59093.0,59092.0,0.069675]
[1724167886535,0.083674,59093.0,59092.0,0.069675]
[1724167887244,0.083674,59093.0,59092.0,0.002]
[1724167887550,0.10659061,59093.0,59092.0,0.002]
[1724167887945,0.10659061,59093.0,59092.0,0.069676]
[1724167888943,1.08194461,59093.0,59092.0,0.002]
[1724167889140,0.067679,59090.0,59083.0,0.36105385]
[1724167889344,0.588479,59090.0,59083.0,0.36105385]
[1724167889644,0.61139561,59090.0,59083.0,0.36105385]
[1724167889842,0.25059561,59090.0,59088.0,0.06768]
[1724167890043,0.16,59090.0,59085.0,0.3513]
[1724167890350,0.02291661,59090.0,59085.0,0.3513]
[1724167890843,0.00025385,59095.0,59094.0,0.067673]
[1724167891051,0.16317046,59095.0,59094.0,0.067673]
[1724167892845,0.16317046,59095.0,59094.0,0.068673]
[1724167893057,0.15925385,59095.0,59094.0,0.069673]
[1724167893251,0.01925385,59095.0,59094.0,0.069673]
[1724167893651,0.01925385,59095.0,59094.0,0.52629845]
[1724167894247,0.01925385,59095.0,59094.0,0.97009845]
[1724167895647,0.00825385,59095.0,59094.0,0.96909845]
[1724167895854,0.01625385,59095.0,59094.0,0.97009845]
[1724167897454,0.01625385,59095.0,59094.0,1.03777145]
[1724167898356,0.01425385,59095.0,59094.0,4.80777145]
[1724167898555,0.01425385,59095.0,59094.0,5.78312445]
[1724167898757,8.5e-07,59095.0,59094.0,5.78312445]
[1724167898953,0.3608,59120.0,59096.0,0.067671]
[1724167899258,0.067647,59118.0,59117.0,0.067647]
[1724167899450,0.207647,59118.0,59117.0,0.067647]
[1724167899649,0.23056361,59118.0,59117.0,0.067647]
[1724167899844,0.23056361,59118.0,59117.0,0.066647]
[1724167900360,0.00907008,59120.0,59119.0,0.067645]
[1724167900655,0.09055961,59120.0,59119.0,0.067645]
[1724167901043,0.02291661,59120.0,59119.0,0.067645]
[1724167901243,0.00911678,59121.0,59117.0,0.05147168]
[1724167901449,0.00911678,59121.0,59117.0,0.068647]
[1724167901450,0.067644,59120.0,59117.0,0.068647]
[1724167901650,0.15,59120.0,59117.0,0.001]
[1724167901849,0.070646,59118.0,59117.0,0.002]
[1724167902258,0.003,59118.0,59117.0,0.068647]
[1724167902453,0.89605752,59122.0,59117.0,0.068647]
[1724167902454,0.37131552,59122.0,59117.0,0.11811868]
[1724167902649,0.39303212,59122.0,59121.0,0.067642]
[1724167902845,0.37011551,59122.0,59121.0,0.067642]
[1724167903454,0.3608,59122.0,59121.0,0.067642]
[1724167904056,0.00923075,59124.0,59122.0,0.067641]
[1724167904253,0.3608,59127.0,59122.0,0.067641]
[1724167904755,0.4649,59132.0,59122.0,3.837641]
[1724167904959,0.00931314,59127.0,59122.0,3.84663739]
[1724167905151,0.00931314,59127.0,59122.0,3.89706079]
[1724167905576,0.00931314,59127.0,59122.0,3.84663739]
[1724167905855,0.4649,59132.0,59122.0,3.84663739]
[1724167906061,0.00316535,59123.0,59122.0,4.35607739]
[1724167906257,0.00316535,59123.0,59122.0,4.42337296]
[1724167906556,0.067623,59138.0,59136.0,0.067625]
[1724167906764,0.09053961,59138.0,59136.0,0.067625]
[1724167907054,0.067626,59136.0,59133.0,0.3608]
[1724167907361,0.03221087,59138.0,59135.0,0.067626]